bitfinex/quotes_BTCUSD_20250403
["timestamp","ask_amount","ask_price","bid_price","bid_amount"]
[1743691622414,0.244765,81711.0,81702.0,0.012239]
[1743691622669,0.26,81711.0,81702.0,0.244791]
[1743691622900,0.26,81711.0,81703.0,0.244789]
[1743691623132,0.26,81711.0,81706.0,0.244779]
[1743691623331,0.26,81711.0,81706.0,0.24478]
[1743691623806,0.244768,81710.0,81703.0,0.244788]
[1743691624032,0.244768,81710.0,81701.0,0.012239]
[1743691624033,0.514768,81710.0,81701.0,0.012239]
[1743691624296,0.244771,81709.0,81702.0,0.244791]
[1743691624533,0.474771,81709.0,81702.0,0.244791]
[1743691624768,0.257025,81704.0,81694.0,0.244816]
[1743691625026,0.23,81704.0,81699.0,0.2448]
[1743691625272,0.23,81704.0,81700.0,0.012239]
[1743691625485,0.23,81704.0,81697.0,0.257044]
[1743691625706,0.23,81704.0,81701.0,0.244794]
[1743691625931,0.23,81704.0,81703.0,0.012239]
[1743691626605,0.23,81704.0,81703.0,0.257028]
[1743691627756,0.23,81704.0,81693.0,0.01224]
[1743691627757,0.242239,81704.0,81693.0,0.01224]
[1743691627977,0.23,81704.0,81703.0,0.244789]
[1743691628873,0.23,81704.0,81703.0,0.257028]
[1743691630207,0.23,81704.0,81699.0,0.01224]
[1743691630208,0.474788,81704.0,81695.0,0.01224]
[1743691630432,0.23,81704.0,81697.0,0.01224]
[1743691630672,0.23,81704.0,81703.0,0.0001681]
[1743691630872,0.08,81704.0,81703.0,0.0001681]
[1743691631255,0.324786,81704.0,81703.0,0.0001681]
[1743691631599,0.08,81704.0,81703.0,0.0001681]
[1743691632837,0.08,81704.0,81703.0,0.2449571]
[1743691633078,0.08,81704.0,81703.0,0.2571961]
[1743691633306,0.08,81704.0,81703.0,0.0001681]
[1743691636067,0.432025,81704.0,81703.0,0.0001681]
[1743691636514,0.175,81704.0,81703.0,0.0001681]
[1743691636734,0.08,81704.0,81703.0,0.0001681]
[1743691637606,0.08,81704.0,81703.0,0.2449571]
[1743691638313,0.08,81704.0,81703.0,0.0001681]
[1743691638536,0.337025,81704.0,81703.0,0.0001681]
[1743691638754,0.08,81704.0,81703.0,0.0001681]
[1743691639200,0.337025,81704.0,81703.0,0.0001681]
[1743691643160,0.5036168,81704.0,81703.0,0.0001681]
[1743691646644,0.3868612,81704.0,81703.0,0.0001681]
[1743691647685,0.0803362,81704.0,81703.0,0.0001681]
[1743691647887,0.3251222,81704.0,81703.0,0.0001681]
[1743691648090,0.242239,81704.0,81703.0,0.0001681]
[1743691648426,0.487025,81704.0,81703.0,0.0001681]
[1743691650632,0.6037806,81704.0,81703.0,0.0001681]
[1743691651407,0.9437806,81704.0,81703.0,0.0001681]
[1743691651633,0.9910806,81704.0,81703.0,0.0001681]
[1743691651774,1.1519606,81704.0,81703.0,0.0001681]
[1743691653258,1.05432145,81704.0,81703.0,0.0001681]
[1743691653480,1.21520145,81704.0,81703.0,0.0001681]
[1743691654393,1.21620145,81704.0,81703.0,0.0001681]
[1743691655248,1.21720145,81704.0,81703.0,0.0001681]
[1743691655562,1.21620145,81704.0,81703.0,0.0001681]
[1743691655772,1.21820145,81704.0,81703.0,0.0001681]
[1743691656222,1.22153765,81704.0,81703.0,0.0001681]
[1743691656467,0.257103,81679.0,81678.0,0.2371543]
[1743691656732,2.27397945,81679.0,81678.0,3e-07]
[1743691656952,2.27393945,81679.0,81678.0,3e-07]
[1743691657401,2.2642976,81679.0,81678.0,3e-07]
[1743691657684,2.2471956,81679.0,81678.0,3e-07]
[1743691657954,1.8066386,81679.0,81678.0,3e-07]
[1743691658214,1.33764,81679.0,81678.0,3e-07]
[1743691658443,1.33964,81679.0,81678.0,3e-07]
[1743691658714,1.33964,81679.0,81678.0,0.2571063]
[1743691658940,0.282,81679.0,81678.0,0.2571063]
[1743691659160,0.284,81679.0,81678.0,0.2571063]
[1743691659642,0.284,81679.0,81678.0,0.2571463]
[1743691659860,0.284,81679.0,81678.0,0.3739019]
[1743691660101,0.282,81679.0,81678.0,0.3739019]
[1743691661244,0.28,81679.0,81678.0,0.3739019]
[1743691662422,0.28,81679.0,81678.0,0.43724275]
[1743691662627,0.28,81679.0,81678.0,0.4227019]
[1743691663896,0.01449552,81679.0,81678.0,0.4227019]
[1743691664116,0.01449552,81679.0,81678.0,0.5835019]
[1743691664970,0.01449552,81679.0,81678.0,0.5956898]
[1743691665409,0.01449552,81679.0,81678.0,0.5468898]
[1743691666038,0.01449552,81679.0,81678.0,0.4301342]
[1743691666672,0.01449552,81679.0,81678.0,0.5468898]
[1743691668189,0.01449552,81679.0,81678.0,0.5470579]
[1743691669597,0.01449552,81679.0,81678.0,0.3862579]
[1743691670042,0.01449552,81679.0,81678.0,0.2695023]
[1743691670269,0.01449552,81679.0,81678.0,0.0123963]
[1743691670958,0.27159852,81679.0,81678.0,0.0123963]
[1743691671606,0.43715412,81679.0,81678.0,0.0123963]
[1743691672060,0.06329552,81679.0,81678.0,0.0123963]
[1743691672720,0.30815552,81679.0,81678.0,0.0123963]
[1743691673001,0.66039852,81679.0,81678.0,0.0123963]
[1743691673215,0.77715412,81679.0,81678.0,0.0123963]
[1743691674295,0.40329552,81679.0,81678.0,0.0123963]
[1743691675160,0.01449552,81679.0,81678.0,0.0123963]
[1743691675590,0.27159852,81679.0,81678.0,0.0123963]
[1743691676486,0.38835412,81679.0,81678.0,0.0123963]
[1743691676972,0.38835412,81679.0,81678.0,0.0124363]
[1743691677193,0.77495412,81679.0,81678.0,0.0124363]
[1743691678118,0.77495412,81679.0,81669.0,0.000168]
[1743691678119,0.644631,81670.0,81669.0,0.000168]
[1743691678350,0.9687066,81670.0,81669.0,0.000168]
[1743691678577,1.2487066,81670.0,81669.0,0.000168]
[1743691681612,1.2487066,81670.0,81661.0,0.004]
[1743691681613,0.65998785,81665.0,81661.0,0.004]
[1743691681812,1.10554345,81665.0,81661.0,0.004]
[1743691683104,1.0910026,81665.0,81661.0,0.004]
[1743691684105,2.1489626,81665.0,81661.0,0.004]
[1743691684774,1.33796,81665.0,81661.0,0.004]
[1743691684949,1.350205,81665.0,81661.0,0.004]
[1743691685167,1.33796,81665.0,81661.0,0.004]
[1743691685606,1.10405801,81665.0,81661.0,0.004]
[1743691686278,1.34896001,81665.0,81661.0,0.004]
[1743691686538,1.10405801,81665.0,81663.0,0.244908]
[1743691686770,1.10405801,81665.0,81661.0,0.248914]
[1743691686771,1.10405801,81665.0,81661.0,0.004]
[1743691687288,1.47796061,81665.0,81661.0,0.004]
[1743691688902,1.52736061,81665.0,81661.0,0.004]
[1743691690058,1.86736061,81665.0,81661.0,0.004]
[1743691690514,0.257156,81662.0,81661.0,0.004]
[1743691690763,1.05626514,81662.0,81661.0,0.004]
[1743691690998,0.7861556,81662.0,81661.0,0.004]
[1743691691230,0.7033116,81662.0,81661.0,0.004]
[1743691691462,0.3967556,81662.0,81661.0,0.004]
[1743691691676,0.43012807,81662.0,81661.0,0.004]
[1743691692837,0.43112807,81662.0,81661.0,0.004]
[1743691693083,0.43212807,81662.0,81661.0,0.004]
[1743691693338,0.43212807,81662.0,81661.0,0.0041682]
[1743691693809,0.88888367,81662.0,81661.0,0.0041682]
[1743691694262,0.77212807,81662.0,81661.0,0.0041682]
[1743691695024,0.43212807,81662.0,81661.0,0.0041682]
[1743691695259,0.54888367,81662.0,81661.0,0.0041682]
[1743691695533,0.88888367,81662.0,81661.0,0.0041682]
[1743691696652,0.93728367,81662.0,81661.0,0.0041682]
[1743691696872,0.95182452,81662.0,81661.0,0.0041682]
[1743691697098,1.06856853,81662.0,81661.0,0.0041682]
[1743691697341,0.012247,81651.0,81650.0,0.00254]
[1743691697556,0.012247,81651.0,81621.0,0.0001681]
[1743691697557,0.67286282,81632.0,81621.0,0.0001681]
[1743691697793,0.67286282,81632.0,81630.0,0.44301309]
[1743691697794,0.64418645,81631.0,81630.0,0.44301309]
[1743691698023,0.88418645,81631.0,81630.0,0.44301309]
[1743691698251,0.92094645,81631.0,81630.0,0.44301309]
[1743691699191,0.92094645,81631.0,81630.0,0.44118525]
[1743691699429,0.9064056,81631.0,81630.0,0.44118525]
[1743691699709,0.92094645,81631.0,81630.0,0.44118525]
[1743691699927,0.93548453,81631.0,81630.0,0.44118525]
[1743691700832,0.93748453,81631.0,81630.0,0.44118525]
[1743691701748,0.93748453,81631.0,81621.0,0.0001681]
[1743691701749,0.597269,81626.0,81621.0,0.0001681]
[1743691701970,0.98856545,81626.0,81621.0,0.0001681]
[1743691702433,1.03396545,81626.0,81621.0,0.0001681]
[1743691703578,1.19456545,81626.0,81621.0,0.0001681]
[1743691703805,1.31330946,81626.0,81621.0,0.0001681]
[1743691704033,1.31830946,81626.0,81625.0,2e-07]
[1743691704260,0.03179185,81622.0,81621.0,5e-07]
[1743691704491,0.99357845,81622.0,81621.0,5e-07]
[1743691704942,0.01066579,81601.0,81600.0,1.07893574]
[1743691705168,0.55806139,81601.0,81600.0,1.01243574]
[1743691706779,0.89806139,81601.0,81600.0,1.01243574]
[1743691706998,0.90736884,81601.0,81600.0,1.01243574]
[1743691707219,0.90895705,81601.0,81600.0,1.01243574]
[1743691707483,0.90895705,81601.0,81600.0,1.01247574]
[1743691708631,0.90895705,81601.0,81600.0,0.85251574]
[1743691709099,0.90895705,81601.0,81600.0,0.85255574]
[1743691709100,0.89670305,81601.0,81600.0,0.85255574]
[1743691709320,0.94572705,81601.0,81600.0,0.85255574]
[1743691709991,0.90895705,81601.0,81600.0,0.85259574]
[1743691710443,0.90895705,81601.0,81600.0,0.85263574]
[1743691710444,20.90895705,81601.0,81600.0,0.85263574]
[1743691710671,20.74831705,81601.0,81600.0,0.85263574]
[1743691711384,20.99341205,81601.0,81600.0,0.85263574]
[1743691711625,21.15401205,81601.0,81600.0,0.85263574]
[1743691711827,20.527349,81601.0,81600.0,0.85263574]
[1743691712056,20.27,81601.0,81600.0,0.85263574]
[1743691712284,20.527349,81601.0,81600.0,0.85263574]
[1743691712504,20.6441046,81601.0,81600.0,0.85263574]
[1743691713165,20.8047046,81601.0,81600.0,0.85263574]
[1743691713841,20.81377355,81601.0,81600.0,0.85263574]
[1743691717359,20.27,81601.0,81600.0,0.85280404]
[1743691717627,20.2703366,81601.0,81600.0,0.85280404]
[1743691718904,20.6444412,81601.0,81600.0,0.85280404]
[1743691719138,20.9844412,81601.0,81600.0,0.85280404]
[1743691719383,20.6444412,81601.0,81600.0,0.85280404]
[1743691720288,20.2703366,81601.0,81600.0,0.85280404]
[1743691720527,20.2703366,81601.0,81600.0,1.09790204]
[1743691720772,20.2703366,81601.0,81600.0,0.85280404]
[1743691721221,20.2825906,81601.0,81600.0,0.85280404]
[1743691721449,20.5154316,81601.0,81600.0,0.85280404]
[1743691721903,20.6444412,81601.0,81600.0,0.85280404]
[1743691722369,20.8050012,81601.0,81600.0,0.85280404]
[1743691724518,20.76118521,81601.0,81600.0,0.85280404]
[1743691724735,21.1449612,81601.0,81600.0,0.85280404]
[1743691725168,21.1449612,81601.0,81600.0,0.85284404]
[1743691726283,21.1469612,81601.0,81600.0,0.85284404]
[1743691726741,21.1489612,81601.0,81600.0,0.85284404]
[1743691726964,21.1489612,81601.0,81600.0,0.83144404]
[1743691730639,0.012256,81589.0,81579.0,0.0001682]
[1743691730865,0.597415,81580.0,81579.0,0.0001682]
[1743691731068,0.597419,81579.0,81578.0,0.0477682]
[1743691731253,0.507419,81579.0,81578.0,0.0477682]
[1743691731468,0.6241746,81579.0,81578.0,0.0477682]
[1743691732138,0.64583252,81579.0,81578.0,0.0477682]
[1743691732841,0.67729892,81579.0,81578.0,0.0477682]
[1743691733071,0.68955692,81579.0,81578.0,0.0477682]
[1743691733295,0.64583252,81579.0,81578.0,0.0477682]
[1743691733525,0.84309352,81579.0,81578.0,0.0477682]
[1743691733759,0.84409352,81579.0,81578.0,0.0477682]
[1743691734917,0.84409352,81579.0,81578.0,2e-07]
[1743691735135,0.68361352,81579.0,81578.0,2e-07]
[1743691735364,0.84509352,81579.0,81578.0,2e-07]
[1743691735802,0.84509352,81579.0,81547.0,0.06986229]
[1743691735803,0.24363593,81558.0,81547.0,0.06986229]
[1743691736020,0.245228,81557.0,81547.0,0.06986229]
[1743691736257,0.495227,81557.0,81546.0,0.0459]
[1743691736476,0.24523,81556.0,81546.0,0.291159]
[1743691736734,0.24,81556.0,81546.0,0.0459]
[1743691736945,0.24,81556.0,81555.0,0.245233]
[1743691737176,0.24,81556.0,81550.0,0.245248]
[1743691737425,0.24,81556.0,81549.0,0.245249]
[1743691737650,0.48523,81556.0,81542.0,0.012263]
[1743691737863,0.485232,81556.0,81546.0,0.30342]
[1743691738116,0.24,81556.0,81548.0,0.012262]
[1743691738594,0.24,81556.0,81547.0,0.245256]
[1743691738840,0.24,81556.0,81546.0,0.0459]
[1743691739038,0.48523,81556.0,81546.0,0.0459]
[1743691739486,0.24,81556.0,81546.0,0.058203]
[1743691739733,0.24,81556.0,81549.0,0.012262]
[1743691739951,0.24,81556.0,81549.0,0.245251]
[1743691740186,0.24,81556.0,81550.0,0.245245]
[1743691740612,0.24,81556.0,81551.0,0.245242]
[1743691740860,0.24,81556.0,81549.0,0.257512]
[1743691741094,0.24,81556.0,81550.0,0.245245]
[1743691741343,0.24,81556.0,81552.0,0.012262]
[1743691741596,0.24,81556.0,81555.0,0.306994]
[1743691741824,0.24,81556.0,81555.0,0.4703496]
[1743691745787,0.24,81556.0,81555.0,0.4703896]
[1743691746211,0.01255232,81579.0,81562.0,0.01226]
[1743691746419,0.245176,81575.0,81564.0,0.245206]
[1743691746638,0.25,81575.0,81567.0,0.012259]
[1743691746839,0.25,81575.0,81574.0,0.257434]
[1743691746984,0.25,81575.0,81567.0,0.245197]
[1743691747190,0.25,81575.0,81566.0,0.257459]
[1743691747191,0.25,81575.0,81572.0,0.245181]
[1743691747455,0.25,81575.0,81572.0,0.24518]
[1743691747670,0.25,81575.0,81572.0,0.245181]
[1743691747883,0.25,81575.0,81568.0,0.257444]
[1743691748108,0.25,81575.0,81562.0,0.01226]
[1743691748349,0.25,81575.0,81558.0,0.012261]
[1743691748350,0.24518,81573.0,81561.0,0.245212]
[1743691748560,0.245183,81572.0,81561.0,0.01226]
[1743691748787,0.23,81572.0,81564.0,0.245205]
[1743691749043,0.23,81572.0,81560.0,0.245216]
[1743691749259,0.23,81572.0,81567.0,0.012259]
[1743691749482,0.23,81572.0,81570.0,0.245185]
[1743691749772,0.23,81572.0,81571.0,0.4214996]
[1743691752505,0.23,81572.0,81570.0,0.245185]
[1743691752737,0.23,81572.0,81565.0,0.0478]
[1743691752967,0.23,81572.0,81560.0,0.257475]
[1743691753191,0.23,81572.0,81566.0,0.245199]
[1743691753407,0.23,81572.0,81566.0,0.25746]
[1743691753630,0.23,81572.0,81567.0,0.245196]
[1743691753851,0.23,81572.0,81557.0,0.257486]
[1743691754067,0.245192,81569.0,81561.0,0.245214]
[1743691754278,0.245192,81569.0,81564.0,0.245205]
[1743691754279,0.27,81569.0,81564.0,0.245205]
[1743691754493,0.27,81569.0,81563.0,0.245207]
[1743691754703,0.27,81569.0,81564.0,0.245206]
[1743691754916,0.27,81569.0,81561.0,0.01226]
[1743691755130,0.27,81569.0,81561.0,0.257475]
[1743691755359,0.515191,81569.0,81561.0,0.257475]
[1743691755591,0.245203,81565.0,81557.0,0.245225]
[1743691755820,0.24,81565.0,81557.0,0.245227]
[1743691756082,0.485203,81565.0,81555.0,0.0002081]
[1743691756298,0.24,81565.0,81560.0,0.01226]
[1743691756514,0.24,81565.0,81561.0,0.245209]
[1743691756739,0.24,81565.0,81556.0,0.012261]
[1743691756956,0.24,81565.0,81561.0,0.245212]
[1743691757179,0.24,81565.0,81555.0,0.1292247]
[1743691757464,0.485206,81565.0,81555.0,0.0002081]
[1743691757650,0.245222,81559.0,81555.0,0.0002081]
[1743691757890,0.26,81559.0,81555.0,0.0002081]
[1743691758782,0.24523,81556.0,81555.0,0.0002081]
[1743691759009,0.48523,81556.0,81555.0,0.0002081]
[1743691759236,0.24,81556.0,81555.0,0.0002081]
[1743691759672,0.24,81556.0,81555.0,0.2454411]
[1743691759890,0.24,81556.0,81555.0,0.0002081]
[1743691760603,0.48523,81556.0,81555.0,0.0002081]
[1743691760815,0.24,81556.0,81555.0,0.0002081]
[1743691763708,0.24,81556.0,81555.0,0.2577021]
[1743691764177,0.24,81556.0,81555.0,0.0002081]
[1743691765358,0.48523,81556.0,81555.0,0.0002081]
[1743691766538,0.24,81556.0,81555.0,0.0002081]
[1743691767030,0.24,81556.0,81555.0,0.2577021]
[1743691767256,0.24,81556.0,81555.0,0.0002081]
[1743691767929,0.48523,81556.0,81555.0,0.0002081]
[1743691768171,0.497491,81556.0,81555.0,0.0002081]
[1743691768403,0.593691,81556.0,81555.0,0.0002081]
[1743691768631,0.60284279,81556.0,81555.0,0.0002081]
[1743691768872,0.3362,81556.0,81555.0,0.0002081]
[1743691769099,0.497491,81556.0,81555.0,0.0002081]
[1743691769776,0.50690584,81556.0,81555.0,0.0002081]
[1743691769997,0.78394144,81556.0,81555.0,0.0002081]
[1743691770669,0.83284144,81556.0,81555.0,0.0002081]
[1743691772332,0.84498412,81556.0,81555.0,0.0002081]
[1743691773000,0.65736234,81556.0,81555.0,0.0002081]
[1743691773219,0.64521966,81556.0,81555.0,0.0002081]
[1743691773883,0.36818406,81556.0,81555.0,0.0002081]
[1743691774088,0.47956406,81556.0,81555.0,0.0002081]
[1743691774797,0.59631966,81556.0,81555.0,0.0002081]
[1743691776013,1.16330452,81556.0,81555.0,1e-07]
[1743691776250,0.645619,81547.0,81546.0,4e-07]
[1743691776476,0.34963934,81544.0,81543.0,0.0001683]
[1743691776725,0.72639494,81544.0,81543.0,0.0001683]
[1743691776949,0.7157216,81544.0,81543.0,0.0001683]
[1743691777173,0.4704556,81544.0,81543.0,0.0001683]
[1743691777446,0.83725945,81544.0,81543.0,0.0001683]
[1743691778336,0.99749945,81544.0,81543.0,0.0001683]
[1743691778563,0.352264,81538.0,81520.0,0.5]
[1743691778790,0.61710085,81534.0,81520.0,0.5]
[1743691778998,2.06345645,81534.0,81520.0,0.5]
[1743691779230,2.18020046,81534.0,81520.0,0.5]
[1743691779463,2.34048046,81534.0,81520.0,0.5]
[1743691779687,2.05845645,81534.0,81520.0,0.5]
[1743691779933,2.21873645,81534.0,81520.0,0.5]
[1743691780146,2.0439156,81534.0,81520.0,0.512266]
[1743691780364,1.61891864,81534.0,81523.0,0.012266]
[1743691780590,1.61891864,81534.0,81520.0,0.5]
[1743691780591,1.63118264,81534.0,81520.0,0.5]
[1743691781065,1.63118264,81534.0,81522.0,0.245331]
[1743691781288,1.63118264,81534.0,81520.0,0.5]
[1743691781539,1.63114264,81534.0,81520.0,0.5]
[1743691781790,1.47090264,81534.0,81520.0,0.5]
[1743691782044,1.62814264,81534.0,81520.0,0.5]
[1743691783022,2.08058349,81534.0,81520.0,0.5]
[1743691783970,2.07758349,81534.0,81520.0,0.5]
[1743691784438,2.14915014,81534.0,81520.0,0.5]
[1743691784691,1.91734349,81534.0,81520.0,0.5]
[1743691785141,2.07758349,81534.0,81520.0,0.5]
[1743691785376,2.07558349,81534.0,81520.0,0.5]
[1743691785610,2.07958349,81534.0,81533.0,0.05004]
[1743691785825,2.07962349,81534.0,81533.0,0.05004]
[1743691786021,2.15305272,81534.0,81533.0,0.05004]
[1743691786290,2.07962349,81534.0,81533.0,0.05004]
[1743691786740,2.32491949,81534.0,81533.0,0.05004]
[1743691787207,2.26477864,81534.0,81533.0,0.05004]
[1743691787679,2.27931949,81534.0,81533.0,1e-06]
[1743691787907,0.61211085,81531.0,81530.0,1e-06]
[1743691788132,1.07561046,81531.0,81530.0,1e-06]
[1743691788855,0.95886645,81531.0,81530.0,1e-06]
[1743691789312,0.96186645,81531.0,81530.0,1e-06]
[1743691789790,0.9473256,81531.0,81530.0,1e-06]
[1743691790016,1.1045656,81531.0,81530.0,1e-06]
[1743691790258,1.1085656,81531.0,81530.0,1e-06]
[1743691790959,1.1085656,81531.0,81530.0,4.1e-05]
[1743691791199,1.1085656,81531.0,81530.0,0.0002091]
[1743691791657,1.1045656,81531.0,81530.0,0.0002091]
[1743691791877,1.1085656,81531.0,81530.0,0.0002491]
[1743691792099,1.10796431,81531.0,81530.0,0.0002491]
[1743691792348,1.10396431,81531.0,81530.0,0.0002891]
[1743691792812,1.10596431,81531.0,81530.0,0.0003291]
[1743691793037,1.10596431,81531.0,81530.0,0.0003691]
[1743691794395,0.012266,81525.0,81520.0,0.10481676]
[1743691794516,0.245329,81524.0,81520.0,0.10481676]
[1743691794731,0.245333,81522.0,81520.0,0.10481676]
[1743691794984,0.257601,81521.0,81520.0,0.10481676]
[1743691795194,0.537601,81521.0,81520.0,0.10481676]
[1743691797510,1.34,81521.0,81520.0,0.35015476]
[1743691797727,1.34,81521.0,81520.0,0.36242076]
[1743691797974,1.34,81521.0,81520.0,0.40852076]
[1743691801009,1.34,81521.0,81520.0,0.15091676]
[1743691801549,1.34,81521.0,81520.0,0.40852076]
[1743691803103,1.34,81521.0,81520.0,0.15091676]
[1743691803257,1.34,81521.0,81520.0,0.39625476]
[1743691803577,1.34,81521.0,81520.0,0.15091676]
[1743691803767,1.34,81521.0,81520.0,0.10481676]
[1743691803768,1.597601,81521.0,81520.0,0.10481676]
[1743691804015,1.597601,81521.0,81520.0,0.10498486]
[1743691804974,1.34,81521.0,81520.0,0.35032286]
[1743691805466,1.34,81521.0,81520.0,0.10498486]
[1743691805923,1.597601,81521.0,81520.0,0.10498486]
[1743691806144,1.34,81521.0,81520.0,0.10498486]
[1743691806393,1.34,81521.0,81520.0,0.36258886]
[1743691806615,1.34,81521.0,81520.0,0.11725086]
[1743691806858,1.34,81521.0,81520.0,0.36258886]
[1743691807102,1.34,81521.0,81520.0,0.10498486]
[1743691807493,1.34,81521.0,81520.0,0.35032286]
[1743691807760,1.34,81521.0,81520.0,0.10498486]
[1743691807984,1.352266,81521.0,81520.0,0.10498486]
[1743691808428,1.4690216,81521.0,81520.0,0.10498486]
[1743691809084,1.58576561,81521.0,81520.0,0.10498486]
[1743691809537,1.4690216,81521.0,81520.0,0.10498486]
[1743691811288,1.6291416,81521.0,81520.0,0.10498486]
[1743691812063,1.6301416,81521.0,81520.0,0.10498486]
[1743691812512,0.012267,81519.0,81518.0,1.6e-07]
[1743691812743,0.49030746,81519.0,81518.0,1.6e-07]
[1743691815308,0.37356345,81519.0,81518.0,1.6e-07]
[1743691816009,0.37456345,81519.0,81518.0,1.6e-07]
[1743691816936,0.3600226,81519.0,81518.0,1.6e-07]
[1743691817847,0.5201426,81519.0,81518.0,1.6e-07]
[1743691818350,0.8601426,81519.0,81518.0,1.6e-07]
[1743691818581,0.3600226,81519.0,81518.0,1.6e-07]
[1743691818802,0.5201426,81519.0,81518.0,1.6e-07]
[1743691819281,0.63688661,81519.0,81518.0,1.6e-07]
[1743691819509,0.99142746,81519.0,81518.0,1.6e-07]
[1743691819756,0.8601426,81519.0,81518.0,1.6e-07]
[1743691821813,0.87468345,81519.0,81518.0,1.6e-07]
[1743691822268,0.92488345,81519.0,81518.0,1.6e-07]
[1743691823671,0.34,81511.0,81506.0,4.6e-07]
[1743691823866,0.34,81511.0,81505.0,9.6e-07]
[1743691823867,0.41590985,81506.0,81505.0,9.6e-07]
[1743691824096,0.012271,81492.0,81473.0,0.0001684]
[1743691824323,0.257699,81490.0,81489.0,1e-06]
[1743691824542,0.257699,81490.0,81481.0,1e-06]
[1743691824543,0.61067403,81482.0,81481.0,1e-06]
[1743691824819,0.98742963,81482.0,81481.0,1e-06]
[1743691825003,1.03252963,81482.0,81481.0,1e-06]
[1743691825227,1.4456394,81482.0,81481.0,1e-06]
[1743691825687,0.61230085,81471.0,81470.0,2.4e-07]
[1743691825904,0.01568377,81468.0,81467.0,2.4e-07]
[1743691826134,0.27076945,81452.0,81448.0,0.0001681]
[1743691826354,1.87780505,81452.0,81448.0,0.0001681]
[1743691826559,2.21780505,81452.0,81448.0,0.0001681]
[1743691827250,2.04659397,81452.0,81448.0,0.0001681]
[1743691827496,2.22125482,81452.0,81448.0,0.0001681]
[1743691827959,2.21784505,81452.0,81448.0,0.0001681]
[1743691828402,2.33458906,81452.0,81448.0,0.0001681]
[1743691828619,2.34381305,81452.0,81451.0,0.0041682]
[1743691828860,2.22806904,81452.0,81451.0,0.0041682]
[1743691829335,2.22706904,81452.0,81451.0,0.00406969]
[1743691829555,2.22806904,81452.0,81451.0,0.00406969]
[1743691829783,2.22806904,81452.0,81430.0,1.0]
[1743691829784,0.00340977,81446.0,81444.0,7.9e-07]
[1743691830031,0.00340977,81446.0,81430.0,1.0]
[1743691830032,0.02682085,81431.0,81430.0,1.0]
[1743691830256,0.81930245,81431.0,81430.0,1.0]
[1743691830800,0.65918245,81431.0,81430.0,1.0]
[1743691831005,0.81930245,81431.0,81430.0,1.0]
[1743691831282,0.6446416,81431.0,81430.0,1.0]
[1743691831514,0.81597507,81431.0,81430.0,1.0]
[1743691831987,0.82537122,81431.0,81430.0,1.0]
[1743691832456,0.83991207,81431.0,81430.0,1.0]
[1743691832688,0.83991207,81431.0,81430.0,0.98]
[1743691833203,0.8286986,81431.0,81430.0,0.98]
[1743691833449,0.84091171,81431.0,81430.0,0.98]
[1743691833952,1.18091171,81431.0,81430.0,0.98]
[1743691834221,1.18191171,81431.0,81430.0,0.98]
[1743691834734,1.23061171,81431.0,81430.0,0.98]
[1743691835223,1.18191171,81431.0,81430.0,0.98]
[1743691835451,1.18091171,81431.0,81430.0,0.98]
[1743691835690,1.18391171,81431.0,81430.0,0.98]
[1743691836163,1.02079171,81431.0,81430.0,0.98]
[1743691836408,1.18399171,81431.0,81430.0,0.98]
[1743691837620,1.00925086,81431.0,81430.0,0.98]
[1743691838068,2.23049086,81431.0,81430.0,0.98]
[1743691838577,1.73029086,81431.0,81430.0,0.98]
[1743691838819,1.89049086,81431.0,81430.0,0.98]
[1743691839074,1.73029086,81431.0,81430.0,0.98]
[1743691839553,1.89049086,81431.0,81430.0,0.98]
[1743691839780,1.88749086,81431.0,81430.0,0.98]
[1743691840015,1.88949086,81431.0,81430.0,0.9799]
[1743691840490,1.88949086,81431.0,81430.0,0.9800684]
[1743691840749,1.70713118,81431.0,81430.0,0.9800684]
[1743691841976,1.72167203,81431.0,81430.0,4e-07]
[1743691842301,1.71967203,81431.0,81430.0,4e-07]
[1743691842510,1.72267203,81431.0,81430.0,4e-07]
[1743691842908,1.71967203,81431.0,81430.0,4e-07]
[1743691843374,1.71967203,81431.0,81422.0,0.0498004]
[1743691843375,0.27245185,81423.0,81422.0,0.0498004]
[1743691843606,0.70722188,81423.0,81422.0,0.0498004]
[1743691843844,1.11692188,81423.0,81422.0,0.0498004]
[1743691844081,1.05890745,81423.0,81422.0,0.0498004]
[1743691844313,1.21910745,81423.0,81422.0,0.0498004]
[1743691844526,1.06231722,81423.0,81422.0,0.0498004]
[1743691844734,1.06231722,81423.0,81402.0,0.01232344]
[1743691844735,0.012283,81411.0,81402.0,0.01232344]
[1743691844956,0.245691,81403.0,81402.0,0.01232344]
[1743691845166,0.685891,81403.0,81402.0,0.01232344]
[1743691846458,0.698175,81403.0,81402.0,0.01232344]
[1743691846905,0.685891,81403.0,81402.0,0.01232344]
[1743691847173,0.698175,81403.0,81402.0,0.01232344]
[1743691847395,0.6547306,81403.0,81402.0,0.01232344]
[1743691847643,0.257981,81401.0,81400.0,0.10844729]
[1743691847859,0.6547366,81401.0,81400.0,0.10844729]
[1743691848290,0.6424526,81401.0,81400.0,0.10844729]
[1743691848527,1.7038526,81401.0,81400.0,0.06254729]
[1743691848953,1.7161366,81401.0,81400.0,0.06254729]
[1743691849172,1.52931915,81401.0,81400.0,0.06254729]
[1743691849699,1.51703515,81401.0,81400.0,0.06254729]
[1743691849937,1.15458255,81401.0,81400.0,0.06413752]
[1743691850139,1.40027955,81401.0,81400.0,0.06413752]
[1743691850404,1.15458255,81401.0,81400.0,0.05817752]
[1743691850640,1.15458255,81401.0,81400.0,0.30387752]
[1743691850872,1.15458255,81401.0,81400.0,0.41316252]
[1743691851806,1.10778255,81401.0,81400.0,0.52991812]
[1743691852529,1.10778255,81401.0,81400.0,0.41316252]
[1743691852757,1.10778255,81401.0,81400.0,0.52991812]
[1743691853464,1.10778255,81401.0,81400.0,0.15517752]
[1743691853669,1.10778255,81401.0,81400.0,0.41316252]
[1743691853956,1.10778255,81401.0,81400.0,0.40087752]
[1743691854195,1.38212444,81401.0,81400.0,0.15517752]
[1743691854434,1.05130689,81401.0,81400.0,0.15517752]
[1743691854657,0.89760649,81401.0,81400.0,0.05817752]
[1743691854886,1.02678207,81401.0,81400.0,0.05817752]